Workbook

Sheet Read Me

Sheet Control
G3: Time Series of Output, Supply and Demand | O3: Time Series of Price, Marginal Cost, and | V3: Supply and Demand Schedules
G4: for Good #2 | O4: Marginal Values for Good #2 | V4: for Good #2
A26: SIMLEN: | B26: 30
A27: DT: | B27: 0.01
A28: PER: | B28: =B26/30 -> 1
A29: TIME: | B29: 30.00059128
G47: Time Series of Interest Rates | O47: Time Series of Household Utility | V47: Time Series of Equity Trades
G48: and the Currency Value | O48: and Leisure

Sheet 1 DT
AH4: =-SUM(AH6:AH9) -> -2069.208993 | AI4: =-SUM(AI6:AI9) -> -16224.93656 | AJ4: =-SUM(AJ6:AJ9) -> -53855.02929
F5: < Temporal Parameters, i.e.: Turnover Fractions > | S5: H | T5: 0 | U5: 1 | V5: 2 | W5: L | AF5: U | AG5: 0 | AH5: 1 | AI5: 2 | AJ5: L | AK5: t | AL5: Z | AN5: Z
S6: 0 | U6: 1 | V6: 1 | W6: 0 | X6: 0 | AF6: 0 | AH6: 794.2843664 | AI6: 5693.503722 | AJ6: 8766 | AK6: 0 | AL6: =Y19+AL19 -> -643141.318 | AN6: =Utility!E28 -> -643139.1648 | AO6: 0
R7: =1-T7 -> 4 | S7: 1 | T7: =-SUM(U7:W7) -> -3 | U7: =SIGN(AH7) -> 1 | V7: 1 | W7: 1 | X7: 1 | Y7: =1/(1-T7) -> 0.25 | AE7: Spatial Parameters, | AF7: 1 | AH7: 644.2843664 | AI7: 5546.692237 | AJ7: 29682.74915 | AK7: 1 | AL7: =AH6 -> 794.2843664 | AN7: =Utility!F28 -> 794.2843664 | AO7: 1
E8: i | G8: n | I8: V0 | R8: =1-T8 -> 4 | S8: 2 | T8: =-SUM(U8:W8) -> -3 | U8: 1 | V8: 1 | W8: 1 | X8: 2 | Y8: =1/(1-T8) -> 0.25 | AE8: i.e.: production and | AF8: 2 | AH8: 572.4895161 | AI8: 4693.503722 | AJ8: 25626.02758 | AK8: 2 | AL8: =AI6 -> 5693.503722 | AN8: =Utility!G28 -> 5693.503722 | AO8: 2
E9: =-E60 -> -0.09999952946 | G9: =(1-1/NPV)/Term -> -0.1363233966 | I9: =IState!I13 -> 1 | J9: 0.1 | K9: 0.3333333333 | L9: 1 | N9: < V | R9: =W9-T9 -> 1 | S9: L | T9: =-SUM(U9:V9) -> -2 | U9: 1 | V9: 1 | W9: =SIGN(AJ9) -> -1 | X9: L | Y9: =1/(1-T9) -> 0.3333333333 | AE9: utility tradeoffs > | AF9: L | AH9: 58.15074408 | AI9: 291.2368745 | AJ9: =Zl -> -10219.74744 | AK9: L | AL9: =L49 -> -10219.74744 | AM9: ZL | AN9: =Utility!H31 -> -10219.74286 | AO9: L
E10: =IState!E$13 -> -0.1 | I10: 0 | J10: 1 | K10: 2 | L10: L | R10: h | T10: -N | Y10: 1/(N + 1)
C13: Contra- | E13: k | G13: g | AF13: __
C14: Accounts > | E14: =-E17-SUM(E19:E23) -> -151320.4225 | G14: =-G17-SUM(G19:G23) -> 111000.543 | I14: =-I17-SUM(I19:I22) -> 0 | J14: =-J17-SUM(J19:J22) -> -0.0004108679856 | K14: =-K17-SUM(K19:K22) -> 2.778506314e-10 | L14: =-L17-SUM(L19:L22) -> 0.02650866484 | N14: < Markets | R14: =Iota*E14+Nu*G14 -> 0 | T14: =V0*I14 -> 0 | U14: =J9*J14 -> -4.108679856e-05 | V14: =K9*K14 -> 9.261687713e-11 | W14: =L9*L14 -> 0.02650866484 | Y14: < Market Pressure | AE14: =-AE53 -> 4578831.086 | AF14: U | AG14: =SUM(T56:T58) -> -1683755.431 | AH14: =SUM(AH7:AH9) -> 1274.924627 | AI14: =SUM(AI7:AI9) -> 10531.43283 | AJ14: =SUM(AJ7:AJ8) -> 55308.77673
I15: 0 | J15: 1 | K15: 2 | L15: L | T15: 0 | U15: 1 | V15: 2 | W15: L | AG15: 0 | AH15: 1 | AI15: 2 | AJ15: L
E17: =E25 -> 0 | G17: =G25+G33+G41 -> 0 | I17: =I25+I33+I41 -> 0 | J17: =J25+J33+J41 -> 0 | K17: =K25+K33+K41 -> 0 | L17: =L25+L33+L41 -> 0 | R17: =Iota*E17+Nu*G17 -> 0 | T17: =V0*I17 -> 0 | U17: =J$9*J17 -> 0 | V17: =K$9*K17 -> 0 | W17: =L$9*L17 -> 0 | AE17: =AE53+R17 -> -4578831.086 | AG17: =T17+T53 -> 2326896.984 | AH17: =AH4+U17 -> -2069.208993 | AI17: =AI4+V17 -> -16224.93656 | AJ17: =AJ4+W17 -> -53855.02929
I18: 0 | J18: 1 | K18: 2 | L18: L | R18: e | S18: E | T18: 0 | U18: 1 | V18: 2 | W18: L | Y18: Y | AE18: u + e | AF18: m | AG18: 0 | AH18: 1 | AI18: 2 | AJ18: L | AL18: l | AN18: (u + e)/h
D19: 0 | E19: =E27 -> 0 | F19: 0 | G19: =G27+G35+G43 -> 0 | H19: 0 | I19: =I27+I35+I43 -> 104588.8261 | J19: -999.9861714 | K19: -2249.993457 | L19: -8766 | M19: 0 | R19: =Iota*E19+Nu*G19 -> 0 | S19: 0 | T19: =V0*I19 -> 104588.8261 | U19: =J$9*J19 -> -99.99861714 | V19: -749.9978189 | W19: -8766 | X19: 0 | Y19: =T45 -> -104588.8261 | AA19: =GPE!E10 -> 104588.8261 | AE19: =AE55+R19 -> 0 | AF19: 0 | AG19: =AL19 -> -538552.4919 | AH19: =AL20 -> 694.2846397 | AI19: =AL21 -> 4943.505738 | AJ19: =AJ6+W19 -> 0 | AK19: 0 | AL19: =-U49*AL20-V49*AL21-W49*AL22 -> -538552.4919 | AO19: 0
C20: Monetary > | D20: 1 | E20: =E28 -> 79059.42688 | F20: 1 | H20: 1 | I20: -40175.86293 | J20: 499.990378 | K20: 450.0050308 | L20: 1000.021415 | M20: 1 | N20: < Physical | Q20: Dividends > | R20: =Iota*E20+Nu*G20 -> -7905.905488 | S20: 1 | T20: =V0*I20 -> -40175.86293 | U20: 49.9990378 | V20: 150.0016769 | W20: 1000.021415 | X20: 1 | Y20: =AL7-AL20 -> 99.99972676 | Z20: < Production | AE20: =AE56+R20 -> 2415089.849 | AF20: 1 | AG20: =T20+T56 -> -920485.7525 | AH20: =AH7+U20 -> 694.2834042 | AI20: 5696.693914 | AJ20: =AJ7+W20 -> 30682.77057 | AK20: 1 | AL20: =AL7*Y28 -> 694.2846397 | AN20: =AE20/R7 -> 603772.4623 | AO20: 1
C21: Stocks | D21: 2 | E21: =E29 -> 72260.99557 | F21: 2 | H21: 2 | I21: -36723.16809 | J21: 299.9954317 | K21: 749.9964537 | L21: 1000.015699 | M21: 2 | N21: Stocks | R21: =Iota*E21+Nu*G21 -> -7226.065555 | S21: 2 | T21: =V0*I21 -> -36723.16809 | U21: 29.99954317 | V21: 249.9988179 | W21: 1000.015699 | X21: 2 | Y21: =AL8-AL21 -> 749.9979843 | AC21: U + E | AD21: > | AE21: =AE57+R21 -> 2095778.987 | AF21: 2 | AG21: =T21+T57 -> -798783.5887 | AH21: 602.4890593 | AI21: 4943.50254 | AJ21: =AJ8+W21 -> 26626.04328 | AK21: 2 | AL21: =AL8*Y29 -> 4943.505738 | AN21: =AE21/R8 -> 523944.7468 | AO21: 2
D22: L | F22: L | G22: =G30+G38+G46 -> -111000.543 | H22: L | I22: -27689.79509 | J22: 200.0007726 | K22: 1049.991972 | L22: 6765.936377 | M22: L | R22: =Iota*E22+Nu*G22 -> 15131.97104 | S22: L | T22: =V0*I22 -> -27689.79509 | U22: 20.00007726 | V22: 349.9973241 | W22: 6765.936377 | X22: L | Y22: =AL9-AL22 -> -6765.992033 | Z22: < | AA22: YL = - Leisure | AE22: =AE58+R22 -> 67962.24954 | AF22: L | AG22: =T22+T58 -> -69074.91552 | AH22: 78.15082133 | AI22: 641.2341986 | AJ22: =AL22 -> -3453.75541 | AK22: L | AL22: =AL9*Y30 -> -3453.75541 | AN22: =AE22/R9 -> 67962.24954 | AO22: L
E23: Investment | G23: Saving | Y23: =Utility!M41 -> -6766
E25: 0 | G25: 0 | I25: 0 | J25: 0 | K25: 0 | L25: 0 | U25: - Y/l
H26: A | I26: 0 | J26: 1 | K26: 2 | L26: L | R26: w | S26: W | T26: 0 | U26: 1 | V26: 2 | W26: L | Y26: l/Z | AE26: b = e/w | AG26: Q = E0/W0 | AL26: z = pl | AN26: q = P0Q
D27: 0 | E27: 0 | F27: 0 | G27: 0 | H27: 0 | I27: 34862.94204 | J27: -333.3322784 | K27: -749.99787 | L27: -2922 | M27: 0 | S27: 0 | T27: =-Y19/AL19 -> -0.1942035878 | U27: =-Y20/AH19 -> -0.1440327512 | V27: =-Y21/AI19 -> -0.1517137886 | X27: 0 | Y27: =AL19/AL6 -> 0.8373781575 | AF27: 0 | AK27: 0 | AO27: 0
D28: 1 | E28: 79059.42688 | F28: 1 | H28: 1 | I28: -13391.95091 | J28: 166.6647513 | K28: 150.0011401 | L28: 333.3401429 | M28: 1 | P28: E | Q28: > | R28: =U27-T28 -> -0.01309380141 | S28: 1 | T28: =-SUM(U28:W28) -> -0.1309389498 | U28: =U20/AH20 -> 0.07201531463 | V28: 0.02633135625 | W28: 0.03259227889 | X28: 1 | Y28: =(1-U28)*(1-V28)*(1-W28) -> 0.8741008498 | AE28: =R20/R28 -> 603789.9339 | AF28: 1 | AG28: =T20/T28 -> 306828.9688 | AK28: 1 | AL28: =AL44*AL20 -> 603772.8164 | AN28: =P0*AG28 -> 603773.1922 | AO28: 1
D29: 2 | E29: 72260.99557 | F29: 2 | H29: 2 | I29: -12241.05806 | J29: 99.99836781 | K29: 249.9990089 | L29: 333.3384523 | M29: 2 | P29: U + E | R29: =V27-T29 -> -0.01379211572 | S29: 2 | T29: =-SUM(U29:W29) -> -0.1379216728 | U29: 0.04979267707 | V29: 0.05057119236 | W29: 0.0375578034 | X29: 2 | Y29: =(1-U29)*(1-V29)*(1-W29) -> 0.8682712753 | AE29: =R21/R29 -> 523927.2712 | AF29: 2 | AG29: =T21/T29 -> 266261.0403 | AK29: 2 | AL29: =AL45*AL21 -> 523944.9376 | AN29: =P0*AG29 -> 523944.2642 | AO29: 2
D30: L | F30: L | G30: -37000.79308 | H30: L | I30: -9229.933073 | J30: 66.66646994 | K30: 349.997721 | L30: 2255.312879 | M30: L | R30: =W30-T30 -> 0.22265254 | S30: L | T30: =-SUM(U30:V30) -> -0.8017346489 | U30: =U22/AH22 -> 0.2559164052 | V30: =V22/AI22 -> 0.5458182438 | W30: =(AJ6+Y22)/AJ22 -> -0.579082109 | X30: L | Y30: =(1-U30)*(1-V30) -> 0.3379491939 | AE30: =R22/R30 -> 67962.26553 | AF30: L | AG30: =T22/T30 -> 34537.35613 | AK30: L | AL30: =AL46*AL22 -> 67962.67771 | AN30: =P0*AG30 -> 67962.06319 | AO30: L
W31: (t+Y) /l
I33: 0 | J33: 0 | K33: 0 | L33: 0 | R33: =R35-T33 -> -2326897.392 | T33: =-SUM(U33:W33) -> 2326897.392 | U33: =-SUM(U35:U38) -> -914456.334 | V33: =-SUM(V35:V38) -> -873888.4055 | W33: =-SUM(W35:W38) -> -538552.6529 | AE33: =AE35-AG33 -> -4578831.086 | AG33: =-SUM(AH33:AJ33) -> 4578831.086 | AH33: =-SUM(AH35:AH38) -> -1799469.405 | AI33: =-SUM(AI35:AI38) -> -1719606.742 | AJ33: =-SUM(AJ35:AJ38) -> -1059754.94
H34: B | I34: 0 | J34: 1 | K34: 2 | L34: L | R34: hQ | S34: HQ | T34: 0 | U34: 1 | V34: 2 | W34: L | AE34: hb | AF34: Hb | AG34: 0 | AH34: 1 | AI34: 2 | AJ34: L | AN34: (PU + s)/N
F35: 0 | G35: 0 | H35: 0 | I35: 34862.94204 | J35: -333.3296986 | K35: -749.9978031 | L35: -2922 | M35: 0 | R35: =T35-T35 -> 0 | S35: 0 | T35: =-T33-SUM(T36:T38) -> -538552.6529 | U35: =U6*AG28 -> 306828.9688 | V35: =V6*AG29 -> 266261.0403 | W35: =W6*AG30 -> 0 | X35: 0 | AE35: =AG35-AG35 -> 0 | AF35: 0 | AG35: =-AG33-SUM(AG36:AG38) -> -1059754.94 | AH35: =U6*AE28 -> 603789.9339 | AI35: =V6*AE29 -> 523927.2712 | AJ35: =W6*AE30 -> 0 | AK35: 0 | AO35: 0
F36: 1 | H36: 1 | I36: -13391.95416 | J36: 166.6637037 | K36: 150.001619 | L36: 333.3404665 | M36: 1 | R36: =U35-T36 -> 1227315.875 | S36: 1 | T36: =-SUM(U36:W36) -> -920486.9063 | U36: =U7*$AG28 -> 306828.9688 | V36: 306828.9688 | W36: 306828.9688 | X36: 1 | AE36: =R7*$AE28 -> 2415159.735 | AF36: 1 | AG36: =T7*$AE28 -> -1811369.802 | AH36: 603789.9339 | AI36: 603789.9339 | AJ36: 603789.9339 | AK36: 1 | AN36: =(-AG56-P0*T20)/T7 -> -603772.4354 | AO36: 1
C37: System State | F37: 2 | H37: 2 | I37: -12241.05616 | J37: 99.99808285 | K37: 249.9988345 | L37: 333.3385702 | M37: 2 | R37: =V35-T37 -> 1065044.161 | S37: 2 | T37: =-SUM(U37:W37) -> -798783.1209 | U37: 266261.0403 | V37: 266261.0403 | W37: 266261.0403 | X37: 2 | AE37: =R8*$AE29 -> 2095709.085 | AF37: 2 | AG37: -1571781.814 | AH37: 523927.2712 | AI37: 523927.2712 | AJ37: 523927.2712 | AK37: 2 | AN37: =(-AG57-P0*T21)/T8 -> -523944.571 | AO37: 2
C38: at time = t > | F38: L | G38: -37000.27699 | H38: L | I38: -9229.931717 | J38: 66.66663364 | K38: 349.9973496 | L38: 2255.312127 | M38: L | R38: =W35+W38-T38 -> 34537.35613 | S38: L | T38: =-SUM(U38:V38) -> -69074.71227 | U38: 34537.35613 | V38: 34537.35613 | W38: -34537.35613 | X38: L | AE38: =R9*$AE30 -> 67962.26553 | AF38: L | AG38: -135924.5311 | AH38: 67962.26553 | AI38: 67962.26553 | AJ38: -67962.26553 | AK38: L | AN38: =(-AG58-P0*T22)/T9 -> -67962.26317 | AO38: L
S40: __ | AD40: Intersection of
I41: 0 | J41: 0 | K41: 0 | L41: 0 | R41: =SUM(R36:R38) -> 2326897.392 | S41: Q | T41: =SUM(T36:T38) -> -1788344.739 | U41: =SUM(U36:U38) -> 607627.3652 | V41: =SUM(V36:V38) -> 607627.3652 | W41: =SUM(W36:W37) -> 573090.0091 | AD41: S/D Schedules > | AE41: =AE33/AE17 -> 1 | AG41: =AG33/AG17 -> 1.967784185 | AH41: =AH33/AH17 -> 869.6412061 | AI41: =AI33/AI17 -> 105.9854216 | AJ41: =AJ33/AJ17 -> 19.67791966 | AO41: 1/(N+1)
H42: C | I42: 0 | J42: 1 | K42: 2 | L42: L | T42: 0 | U42: 1 | V42: 2 | W42: L | AF42: c Hb/m | AG42: 0 | AH42: 1 | AI42: 2 | AJ42: L | AL42: p | AN42: (pZPU)
F43: 0 | G43: 0 | H43: 0 | I43: 34862.94204 | J43: -333.3241944 | K43: -749.9977837 | L43: -2922 | M43: 0 | AD43: Marginal Costs of Production > | AE43: 1 | AF43: 0 | AG43: =AG35/AG19 -> 1.967783931 | AH43: 869.6576294 | AI43: 105.9829398 | AK43: 0 | AO43: 0
F44: 1 | H44: 1 | I44: -13391.95786 | J44: 166.661923 | K44: 150.0022716 | L44: 333.3408061 | M44: 1 | R44: 0 | T44: =-GPE!E10 -> -104588.8261 | U44: =-GPE!F10 -> 100 | V44: =-GPE!G10 -> 750 | W44: =-GPE!H10 -> 8766 | AE44: =AE36/AE20 -> 1.000028937 | AF44: 1 | AG44: 1.967841215 | AH44: 869.6591769 | AI44: 105.9895341 | AJ44: =AJ36/AJ20 -> 19.67846849 | AK44: 1 | AL44: =AH49 -> 869.6329746 | AN44: =(AL44*AL7*AL56)^Y7 -> 603772.4975 | AO44: 1
F45: 2 | H45: 2 | I45: -12241.05387 | J45: 99.99898105 | K45: 249.9986104 | L45: 333.3386762 | M45: 2 | R45: =-R83 -> 0 | S45: Yt | T45: =-T19 -> -104588.8261 | U45: =Y20 -> 99.99972676 | V45: =Y21 -> 749.9979843 | W45: =AJ6 -> 8766 | Y45: < Output | AD45: Values of > | AE45: =AE37/AE21 -> 0.9999666462 | AF45: 2 | AG45: 1.967719212 | AH45: 869.6046229 | AI45: 105.9830084 | AJ45: =AJ37/AJ21 -> 19.67724854 | AK45: 2 | AL45: =AI49 -> 105.9865135 | AN45: =(AL45*AL8*AL57)^Y8 -> 523944.673 | AO45: 2
F46: L | G46: -36999.4729 | H46: L | I46: -9229.930304 | J46: 66.66766898 | K46: 349.9969017 | L46: 2255.311371 | M46: L | T46: 0 | U46: 1 | V46: 2 | W46: L | AD46: Marginal Product | AE46: =AE38/AE22 -> 1.000000235 | AF46: L | AG46: 1.967784253 | AH46: 869.6295749 | AI46: 105.9866515 | AJ46: =AJ38/AJ22 -> 19.67778764 | AK46: L | AL46: =-AJ49 -> -19.67790699 | AN46: =(AL46*AL9*AL58)^Y9 -> 67962.46199 | AO46: L
R48: =AE48/$AG48 -> 0.5 | T48: =AG48/$AG48 -> 1 | U48: =AH48/$AG48 -> 441.9334589 | V48: =AI48/$AG48 -> 53.8606403 | W48: =AJ48/$AG48 -> 10 | AE48: 1 | AG48: =GPE!E18 -> 2 | AH48: =GPE!F18 -> 883.8669178 | AI48: =GPE!G18 -> 107.7212806 | AJ48: =GPE!H18 -> 20
G49: =3*G41/Term -> 0 | L49: -10219.74744 | Q49: Currency > | R49: =R33/AE33 -> 0.5081858991 | S49: Y | T49: =T41/(AG14+T73) -> 1.00000027 | U49: =U41/(AH14+U73) -> 441.9351376 | V49: =V41/(AI14+V73) -> 53.86084221 | W49: =W41/(AJ14+W73) -> 10.0000331 | Y49: < Values | AD49: Prices > | AE49: =P0*R49 -> 1.000000175 | AF49: P | AG49: =AG33/(T53+T17) -> 1.967784185 | AH49: =P0*U49 -> 869.6329746 | AI49: =P0*V49 -> 105.9865135 | AJ49: =P0*W49 -> 19.67790699
P50: Value | R50: G/$ | T50: 0 | U50: 1 | V50: 2 | W50: L | Y50: G/unit | AC50: $/unit | AE50: $/$ | AG50: 0 | AH50: 1 | AI50: 2 | AJ50: L
F51: 0 | G51: =3*G43/Term -> 0 | H51: 0
F52: 1 | H52: 1
E53: Maturing | F53: 2 | H53: 2 | R53: =R55-T53 -> -2326896.984 | T53: =-SUM(U53:W53) -> 2326896.984 | U53: =U$49*AH4 -> -914456.1611 | V53: =V$49*AI4 -> -873888.7477 | W53: =W$49*AJ4 -> -538552.0756 | AE53: =AE55-AG53 -> -4578831.086 | AG53: =-SUM(AH53:AJ53) -> 4578831.086 | AH53: =AH$49*AH4 -> -1799452.372 | AI53: =AI$49*AI4 -> -1719624.457 | AJ53: =AJ$49*AJ4 -> -1059754.257
E54: Principal > | F54: L | G54: =3*G46/Term -> -15611.14747 | H54: L | R54: ¡ | S54: YU | T54: 0 | U54: 1 | V54: 2 | W54: L | AE54: u | AF54: PU | AG54: 0 | AH54: 1 | AI54: 2 | AJ54: L | AL54: PU
R55: =T55-T55 -> 0 | S55: 0 | T55: =-T53-SUM(T56:T58) -> -643141.5538 | U55: =U$49*AH6 -> 351022.1708 | V55: 306656.9056 | W55: 87660.29017 | X55: 0 | AE55: =AG55-AG55 -> 0 | AF55: 0 | AG55: =-AG53-SUM(AG56:AG58) -> -1265563.778 | AH55: =AH$49*AH6 -> 690735.8763 | AI55: 603434.6091 | AJ55: 172496.5326 | AK55: 0
R56: =U55-T56 -> 1231332.06 | S56: 1 | T56: =-SUM(U56:W56) -> -880309.8896 | U56: 284731.9002 | V56: 298749.5154 | W56: 296828.474 | X56: 1 | Y56: Interaction | AD56: Interaction | AE56: =AH55-AG56 -> 2422995.755 | AF56: 1 | AG56: =-SUM(AH56:AJ56) -> -1732259.879 | AH56: 560290.9301 | AI56: 587874.5716 | AJ56: 584094.3769 | AK56: 1 | AL56: =AH56*AI56*AJ56 -> 1.923894676e+17
R57: =V55-T57 -> 1068717.326 | S57: 2 | T57: =-SUM(U57:W57) -> -762060.4206 | U57: 253003.2331 | V57: 252796.0634 | W57: 256261.1241 | X57: 2 | Y57: < of Utility | AD57: of Utility > | AE57: =AI55-AG57 -> 2103005.053 | AF57: 2 | AG57: =-SUM(AH57:AJ57) -> -1499570.444 | AH57: 497855.7609 | AI57: 497448.0956 | AJ57: 504266.5872 | AK57: 2 | AL57: =AH57*AI57*AJ57 -> 1.248853519e+17
R58: =W55+W58-T58 -> 26847.59787 | S58: L | T58: =-SUM(U58:V58) -> -41385.12043 | U58: 25698.85709 | V58: 15686.26334 | W58: -102197.8127 | X58: L | Y58: with Values | AD58: with Prices | AE58: =AJ55+AJ58-AG58 -> 52830.2785 | AF58: L | AG58: =-SUM(AH58:AI58) -> -81436.98547 | AH58: 50569.80455 | AI58: 30867.18092 | AJ58: -201103.2396 | AK58: L | AL58: =AH58*AI58 -> 1560947306
E59: - i | G59: Domestic
E60: =-V0-I63/I60 -> 0.09999952946 | F60: < | G60: Interest | I60: =-I20-I21 -> 76899.03102 | J60: < Asset Valuations, a | AG60: - PU
E61: =-IState!E$13 -> 0.1 | G61: Rate | I61: 0
R62: =AE62/AE$49-AE53 -> -1.804915083 | T62: =AG62/AG$49-T53 -> 1.325220343 | U62: =AH62/AH$49-AH4 -> -0.001007772612 | V62: =AI62/AI$49-AI4 -> -0.008606026457 | W62: =AJ62/AJ$49-AJ4 -> -0.04163210031 | AE62: =-AG62 -> -4578833.694 | AG62: =-SUM(AH62:AJ62) -> 4578833.694 | AH62: =-SUM(AH64:AH67) -> -1799453.248 | AI62: =-SUM(AI64:AI67) -> -1719625.369 | AJ62: =-SUM(AJ64:AJ67) -> -1059755.076
E63: Supply Valuations, YS | H63: > | I63: =-SUM(J63:K63) -> -84588.89794 | J63: =U49*U73 -> 44193.37485 | K63: =V49*V73 -> 40395.52309 | R63: -f | S63: Q | T63: 0 | U63: 1 | V63: 2 | W63: L | AE63: hz | AF63: Hz | AG63: 0 | AH63: 1 | AI63: 2 | AJ63: L
I64: 0 | J64: 1 | K64: 2 | R64: =AE64/AE$49-AE55 -> 0 | S64: 0 | T64: =AG64/AG$49-T55 -> 104589.062 | U64: =AH64/AH$49-AH6 -> -99.99972676 | V64: -749.9979843 | W64: -8766 | X64: 0 | AE64: =AG64-AG64 -> 0 | AF64: 0 | AG64: =-AG62-SUM(AG65:AG67) -> -1059755.076 | AH64: =U6*AL28 -> 603772.8164 | AI64: =V6*AL29 -> 523944.9376 | AJ64: =W6*AL30 -> 0 | AK64: 0
R65: =AE65/AE$49-AE56 -> -7904.912589 | S65: 1 | T65: =AG65/AG$49-T56 -> -40176.44379 | U65: 50.00027324 | V65: 150.0025265 | W65: 1000.027064 | X65: 1 | Y65: Optimal | AE65: =R7*AL28 -> 2415091.266 | AF65: 1 | AG65: =T7*AL28 -> -1811318.449 | AH65: =U7*$AL28 -> 603772.8164 | AI65: 603772.8164 | AJ65: 603772.8164 | AK65: 1
I66: NPV | J66: 1 | R66: =AE66/AE$49-AE57 -> -7225.669796 | S66: 2 | T66: =AG66/AG$49-T57 -> -36723.72697 | U66: 30.00021558 | V66: 250.0020157 | W66: 1000.022534 | X66: 2 | Y66: < Rates of | AE66: =R8*AL29 -> 2095779.75 | AF66: 2 | AG66: =T8*AL29 -> -1571834.813 | AH66: 523944.9376 | AI66: 523944.9376 | AJ66: 523944.9376 | AK66: 2
E67: Investment | G67: =LN(1-Iota)*(1-Iota)^Term+Iota*Kappa/Gamma -> 0.3240156677 | I67: =1/(1+Iota*Term*Kappa/Gamma) -> 0.507798014 | J67: 1+iTk/g | R67: =AE67/AE$49-AE58 -> 15132.3873 | S67: L | T67: =AG67/AG$49-T58 -> -27690.21642 | U67: 20.00024571 | V67: 350.0020481 | W67: 6765.992033 | X67: L | Y67: Change | AE67: =R9*AL30 -> 67962.67771 | AF67: L | AG67: =T9*AL30 -> -135925.3554 | AH67: 67962.67771 | AI67: 67962.67771 | AJ67: -67962.67771 | AK67: L
E68: Term | I68: =IState!E9 -> 0.5131581182
E69: Calculation | G69: =Term-(1/I69-1/I67)/G67 -> 7.110201762 | I69: =(V0-Iota/V0)^(-Term) -> 0.5077979582 | J69: 1 | Y69: Domestic
I70: NPV | J70: (1 - i)T | R70: =SUM(R65:R67) -> 1.804915082 | S70: D | T70: =SUM(T65:T67) -> -104590.3872 | U70: =SUM(U65:U67) -> 100.0007345 | V70: =SUM(V65:V67) -> 750.0065903 | W70: =SUM(W65:W66) -> 2000.049599 | Y70: < Demand
T71: 0 | U71: 1 | V71: 2 | W71: L
Y72: Domestic
R73: =R45+R14 -> 0 | S73: S | T73: =-GPE!E10 -> -104588.8261 | U73: =U45+U14 -> 99.99968567 | V73: =V45+V14 -> 749.9979843 | W73: =W45+Y22+W14 -> 2000.034475 | Y73: < Supply | AE73: 0 | AG73: =-SUM(AH73:AJ73) -> 0
T74: 0 | U74: 1 | V74: 2 | W74: L | AF74: FI | AG74: 0 | AH74: 1 | AI74: 2 | AJ74: L
E75: Domestic | G75: T | AE75: =AG75-AG75 -> 0 | AF75: 0 | AG75: =-SUM(AH75:AJ75) -> 0 | AH75: 0 | AI75: 0 | AJ75: 0 | AK75: 0
E76: Investment | F76: > | G76: 7.11020243 | Y76: Demand | AD76: Equity | AE76: =AH75-AG76 -> -0.9425863261 | AF76: 1 | AG76: =-SUM(AH76:AJ76) -> 0.9425863261 | AH76: 0 | AI76: =(AE45-AE44)*(V0*-Iota)*(E20+E21) -> -0.9425863261 | AK76: 1
E77: Term | G77: =ITerm -> 7 | R77: =IF(R70>R73,R73/R70,1) -> 0 | S77: F | T77: =T73/T70 -> 0.9999850744 | U77: =IF(U70>U73,U73/U70,1) -> 0.9999895115 | V77: =IF(V70>V73,V73/V70,1) -> 0.9999885254 | W77: 0.9999924385 | Y77: < Factors | AD77: Markets > | AE77: =AI75-AG77 -> 0.9425863261 | AF77: 2 | AG77: =-SUM(AH77:AJ77) -> -0.9425863261 | AH77: =-AI76 -> 0.9425863261 | AI77: 0 | AK77: 2
T78: 0 | U78: 1 | V78: 2 | W78: L | AE78: =AJ75-AG78 -> 0 | AF78: L | AG78: =-SUM(AH78:AJ78) -> 0 | AK78: L
AM79: Monetary
S80: X | Y80: imports ( - ) | AM80: < Transactions
E81: 0 | G81: 0 | I81: =I25+DT*(T81-I$9*I25*3) -> 0 | J81: =J25+DT*(U81-J$9*J25*3) -> 0 | K81: =K25+DT*(V81-K$9*K25*3) -> 0 | L81: =L25+DT*(W81-L$9*L25*3) -> 0 | R81: =AE73+AE81 -> 0 | T81: 0 | U81: 0 | V81: 0 | W81: 0 | Y81: < eXports ( + ) | AE81: =AE83-AG81 -> 0 | AG81: =AG$49*T81 -> 0 | AH81: =AH$49*U81 -> 0 | AI81: =AI$49*V81 -> 0 | AJ81: =AJ$49*W81 -> 0
H82: A | I82: 0 | J82: 1 | K82: 2 | L82: L | R82: r | S82: R | T82: 0 | U82: 1 | V82: 2 | W82: L | AE82: - NCF | AF82: PR | AG82: 0 | AH82: 1 | AI82: 2 | AJ82: L
D83: 0 | E83: 0 | F83: 0 | G83: 0 | H83: 0 | I83: =I27+DT*(T83-I$9*I27*3) -> 34862.94204 | J83: -333.3322788 | K83: -749.9978711 | L83: -2922 | M83: 0 | Q83: Debt | R83: =AE75+AE83 -> 0 | S83: 0 | T83: =-T81-SUM(T84:T86) -> 104588.8261 | U83: =-U45 -> -99.99972676 | V83: =-V45 -> -749.9979843 | W83: =-W45 -> -8766 | X83: 0 | Y83: < Output ( - ) | AD83: Cost of Sales | AE83: =AG83-AG83 -> 0 | AF83: 0 | AG83: =-AG81-SUM(AG84:AG86) -> 338948.7431 | AH83: =-AH81-SUM(AH84:AH86) -> -86963.02411 | AI83: =-AI81-SUM(AI84:AI86) -> -79489.67148 | AJ83: =-AJ81-SUM(AJ84:AJ86) -> -172496.0475 | AK83: 0
D84: 1 | E84: =E28+DT*(R84-Iota*E28) -> 79059.42411 | F84: 1 | H84: 1 | I84: -13391.95082 | J84: 166.6647545 | K84: 150.0011368 | L84: 333.3401336 | M84: 1 | Q84: Service > | R84: =AE76+AE84 -> -7906.183279 | S84: 1 | T84: =T$77*T65 -> -40175.84414 | U84: 49.99974881 | V84: 150.0008052 | W84: 1000.019503 | X84: 1 | AD84: Minus Sales > | AE84: =AH83-AG84 -> -7905.240693 | AF84: 1 | AG84: =-SUM(AH84:AJ84) -> -79057.78342 | AH84: =AH$49*U84 -> 43481.43029 | AI84: 15898.06237 | AJ84: 19678.29076 | AK84: 1
D85: 2 | E85: =E29+DT*(R85-Iota*E29) -> 72261.00537 | F85: 2 | H85: 2 | I85: -12241.05811 | J85: 99.99837171 | K85: 249.9990102 | L85: 333.3384485 | M85: 2 | R85: =AE77+AE85 -> -7225.086221 | S85: 2 | T85: -36723.17885 | U85: 29.99990092 | V85: 249.9991471 | W85: 1000.014973 | X85: 2 | Y85: < Rates of | AE85: =AI83-AG85 -> -7226.028807 | AF85: 2 | AG85: =-SUM(AH85:AJ85) -> -72263.64267 | AH85: 26088.90308 | AI85: 26496.53797 | AJ85: 19678.20162 | AK85: 2
D86: L | F86: L | G86: =G30+DT*(R86-Nu*G22+G54-3*G30/Term) -> -37000.79453 | H86: L | I86: -9229.933112 | J86: 66.66647089 | K86: 349.9977241 | L86: 2255.312901 | M86: L | Q86: Passive > | R86: =AE78+AE86 -> 15131.2695 | S86: L | T86: -27689.80313 | U86: 20.00003593 | V86: 349.998032 | W86: 6765.940872 | X86: L | Y86: Change | AD86: Consumption > | AE86: =AJ83-AG86 -> 15131.2695 | AF86: L | AG86: =-SUM(AH86:AJ86) -> -187627.317 | AH86: 17392.69074 | AI86: 37095.07113 | AJ86: 133139.5552 | AK86: L
Q87: Income | AD87: Minus Wages | AG87: s
I89: =I33+DT*I$9*3*(I25-I33) -> 0 | J89: =J33+DT*J$9*3*(J25-J33) -> 0 | K89: =K33+DT*K$9*3*(K25-K33) -> 0 | L89: =L33+DT*L$9*3*(L25-L33) -> 0 | R89: =GPE!C8 -> 0 | T89: =GPE!E8 -> 0 | U89: =GPE!F8 -> 0 | V89: =GPE!G8 -> 0 | W89: =GPE!H8 -> 0
H90: B | I90: 0 | J90: 1 | K90: 2 | L90: L | R90: =GPE!C9 -> r | S90: =GPE!D9 -> R | T90: =GPE!E9 -> 0 | U90: =GPE!F9 -> 1 | V90: =GPE!G9 -> 2 | W90: =GPE!H9 -> L
F91: 0 | G91: =G35+DT*3*(G27-G35)/Term -> 0 | H91: 0 | I91: =I35+DT*I$9*3*(I27-I35) -> 34862.94204 | J91: -333.3297063 | K91: -749.9978038 | L91: -2922 | M91: 0 | R91: =GPE!C10 -> 0 | S91: =GPE!D10 -> 0 | T91: =GPE!E10 -> 104588.8261 | U91: =GPE!F10 -> -100 | V91: =GPE!G10 -> -750 | W91: =GPE!H10 -> -8766
F92: 1 | H92: 1 | I92: -13391.95407 | J92: 166.6637069 | K92: 150.0016142 | L92: 333.3404568 | M92: 1 | R92: =GPE!C11 -> -8035.153798 | S92: =GPE!D11 -> 1 | T92: =GPE!E11 -> -40175.76899 | U92: =GPE!F11 -> 50 | V92: =GPE!G11 -> 150 | W92: =GPE!H11 -> 1000
C93: System State | F93: 2 | H93: 2 | I93: -12241.05621 | J93: 99.9980837 | K93: 249.9988362 | L93: 333.3385667 | M93: 2 | R93: =GPE!C12 -> -7344.632768 | S93: =GPE!D12 -> 2 | T93: =GPE!E12 -> -36723.16384 | U93: =GPE!F12 -> 30 | V93: =GPE!G12 -> 250 | W93: =GPE!H12 -> 1000
C94: at time = t + D > | F94: L | G94: =G38+DT*3*(G30-G38)/Term -> -37000.27917 | H94: L | I94: -9229.931757 | J94: 66.66663314 | K94: 349.9973533 | L94: 2255.31215 | M94: L | R94: =GPE!C13 -> 15379.78657 | S94: =GPE!D13 -> L | T94: =GPE!E13 -> -27689.89328 | U94: =GPE!F13 -> 20 | V94: =GPE!G13 -> 350 | W94: =GPE!H13 -> 6766
I97: =I41+DT*I$9*3*(I33-I41) -> 0 | J97: =J41+DT*J$9*3*(J33-J41) -> 0 | K97: =K41+DT*K$9*3*(K33-K41) -> 0 | L97: =L41+DT*L$9*3*(L33-L41) -> 0 | R97: u
H98: C | I98: 0 | J98: 1 | K98: 2 | L98: L | R98: (h/w-1)
F99: 0 | G99: =G43+DT*3*(G35-G43)/Term -> 0 | H99: 0 | I99: =I43+DT*I$9*3*(I35-I43) -> 34862.94204 | J99: -333.3242109 | K99: -749.9977839 | L99: -2922 | M99: 0 | S99: 0
F100: 1 | H100: 1 | I100: -13391.95775 | J100: 166.6619283 | K100: 150.0022651 | L100: 333.3407959 | M100: 1 | R100: =AE56/(R7/R28-1) -> -7905.677465 | S100: 1
F101: 2 | H101: 2 | I101: -12241.05394 | J101: 99.99897835 | K101: 249.9986126 | L101: 333.338673 | M101: 2 | R101: =AE57/(R8/R29-1) -> -7226.305752 | S101: 2
F102: L | G102: =G46+DT*3*(G38-G46)/Term -> -36999.47629 | H102: L | I102: -9229.930347 | J102: 66.66766587 | K102: 349.9969062 | L102: 2255.311393 | M102: L | R102: =AE58/(R9/R30-1) -> 15131.96646 | S102: L
L105: =L49+DT*R105 -> -10219.74745 | R105: =(R102-R22)/AJ49/(1-Y30)*L9 -> -0.0003516425937 | S105: < | T105: ∂ZL/∂t
L106: ZL

Sheet Series
B4: BUFFER ->
C5: =TicToc -> 30.00059128 | D5: ='1 DT'!Y21 -> 749.9979843 | E5: ='1 DT'!V73 -> 749.9979843 | F5: ='1 DT'!V70 -> 750.0065903 | G5: =-Iota -> 0.09999952946 | H5: ='1 DT'!R49 -> 0.5081858991 | I5: ='1 DT'!AI49 -> 105.9865135 | J5: ='1 DT'!AI43 -> 105.9829398 | K5: ='1 DT'!AI44 -> 105.9895341 | L5: ='1 DT'!AI46 -> 105.9866515 | M5: ='1 DT'!AI48 -> 107.7212806 | N5: =-Utility!H31 -> 10219.74286 | O5: =-Ull -> 10219.74744 | P5: =Utility!H15 -> 6766 | Q5: =-'1 DT'!Y22 -> 6765.992033 | R5: ='1 DT'!AE76 -> -0.9425863261 | S5: ='1 DT'!AE77 -> 0.9425863261
A7: BOX: | C7: year | D7: Y2 | E7: S2 | F7: D2 | G7: -i | H7: G/$ | I7: P2 | J7: MC2 | K7: VMP1 | L7: VMPL | M7: P* | N7: -ZL | O7: -ZL1 | P7: -YL | Q7: -YL1 | R7: Sector 1 | S7: Sector 2
A8: 0 | C8: 0 | D8: 750 | E8: 812.5 | F8: 785.1126116 | G8: 0.1406401247 | H8: 0.3555173183 | I8: 150.9770463 | J8: 151.4993434 | K8: 151.4993434 | L8: 151.4993434 | M8: 107.7212806 | N8: 10219.74286 | O8: 10219.74286 | P8: 6766 | Q8: 6766 | R8: 33.6555998 | S8: -33.6555998
A9: =1+A8 -> 1 | C9: 1.009999394 | D9: 743.9650339 | E9: 779.2342895 | F9: 764.1809715 | G9: 0.124443294 | H9: 0.4056205095 | I9: 132.769684 | J9: 126.6332656 | K9: 138.1389522 | L9: 132.690218 | M9: 107.7212806 | N9: 10219.74286 | O9: 10214.87043 | P9: 6766 | Q9: 6765.309226 | R9: -1630.467794 | S9: 1630.467794
A10: 2 | C10: 2.01999855 | D10: 748.6401557 | E10: 761.7150298 | F10: 751.5819986 | G10: 0.1102814938 | H10: 0.4598508017 | I10: 116.9596227 | J10: 111.2372743 | K10: 121.8400547 | L10: 117.2718738 | M10: 107.7212806 | N10: 10219.74286 | O10: 10216.00586 | P10: 6766 | Q10: 6765.020586 | R10: -1530.2789 | S10: 1530.2789
A11: 3 | C11: 3.029997587 | D11: 750.1299783 | E11: 753.9278082 | F11: 748.3585992 | G11: 0.1045521846 | H11: 0.4853935759 | I11: 110.8092439 | J11: 106.6387262 | K11: 114.346988 | L11: 110.963428 | M11: 107.7212806 | N11: 10219.74286 | O11: 10218.67541 | P11: 6766 | Q11: 6765.455065 | R11: -1115.814715 | S11: 1115.814715
A12: 4 | C12: 4.039997578 | D12: 750.1189559 | E12: 751.1564126 | F12: 748.9315828 | G12: 0.1027615552 | H12: 0.4939087676 | I12: 109.004324 | J12: 106.2123477 | K12: 111.3780449 | L12: 108.9764382 | M12: 107.7212806 | N12: 10219.74286 | O12: 10219.78068 | P12: 6766 | Q12: 6765.599202 | R12: -745.2430719 | S12: 745.2430719 | W12: b2 | X12: Z2 | Y12: b1-2-L | Z12: U1-2-L
A13: 5 | C13: 5.050020695 | D13: 749.8520653 | E13: 750.145559 | F13: 749.8340717 | G13: 0.1020256137 | H13: 0.4976857507 | I13: 108.2737754 | J13: 106.4957821 | K13: 109.7901705 | L13: 108.182201 | M13: 107.7212806 | N13: 10219.74286 | O13: 10219.6084 | P13: 6766 | Q13: 6765.446059 | R13: -472.9443195 | S13: 472.9443195 | W13: ='1 DT'!AI35 -> 523927.2712 | X13: ='1 DT'!AL8 -> 5693.503722 | Y13: ='1 DT'!AI36+'1 DT'!AI37+'1 DT'!AI38 -> 1195679.471 | Z13: ='1 DT'!AI7+'1 DT'!AI8+'1 DT'!AI9 -> 10531.43283
A14: 6 | C14: 6.060043812 | D14: 749.7217057 | E14: 749.7557715 | F14: 750.2909714 | G14: 0.1015142938 | H14: 0.5004433053 | I14: 107.7236498 | J14: 106.6455781 | K14: 108.6428899 | L14: 107.6683927 | M14: 107.7212806 | N14: 10219.74286 | O14: 10219.23127 | P14: 6766 | Q14: 6765.131112 | R14: -285.5312098 | S14: 285.5312098 | W14: INITIAL | X14: INITIAL
A15: 7 | C15: 7.070066929 | D15: 749.7094743 | E15: 749.6971926 | F15: 750.4932137 | G15: 0.1011784036 | H15: 0.5022170477 | I15: 107.3452193 | J15: 106.7372822 | K15: 107.8607352 | L15: 107.3451238 | M15: 107.7212806 | N15: 10219.74286 | O15: 10219.39428 | P15: 6766 | Q15: 6764.89469 | R15: -159.9971825 | S15: 159.9971825 | V15: Q1 | W15: s | X15: d | Y15: S | Z15: D
A16: 8 | C16: 8.080089569 | D16: 749.7610739 | E16: 749.7511983 | F16: 750.5076333 | G16: 0.1009199753 | H16: 0.5035589927 | I16: 107.0374235 | J16: 106.7344042 | K16: 107.2914403 | L16: 107.0453577 | M16: 107.7212806 | N16: 10219.74286 | O16: 10219.85157 | P16: 6766 | Q16: 6765.0349 | R16: -78.97351093 | S16: 78.97351093 | V16: 700 | W16: 106.6426664 | X16: 108.2008333 | Y16: =$W$13/($X$13-V16) -> 104.9217744 | Z16: =$Y$13/($Z$13+V16) -> 106.45832
A17: 9 | C17: 9.090112686 | D17: 749.8183103 | E17: 749.8150003 | F17: 750.4354505 | G17: 0.1006966186 | H17: 0.5047236062 | I17: 106.7685309 | J17: 106.6535795 | K17: 106.8615447 | L17: 106.76193 | M17: 107.7212806 | N17: 10219.74286 | O17: 10220.16344 | P17: 6766 | Q17: 6765.32147 | R17: -29.15172721 | S17: 29.15172721 | V17: =10+V16 -> 710 | W17: 106.8566577 | X17: 108.1045815 | Y17: 105.1323126 | Z17: 106.3636183
A18: 10 | C18: 10.1001358 | D18: 749.8787919 | E18: 749.8786045 | F18: 750.3187881 | G18: 0.100501041 | H18: 0.5057484046 | I18: 106.5342515 | J18: 106.5270992 | K18: 106.5360925 | L18: 106.5154651 | M18: 107.7212806 | N18: 10219.74286 | O18: 10220.24274 | P18: 6766 | Q18: 6765.597887 | R18: -0.8399083816 | S18: 0.8399083816 | V18: =10+V17 -> 720 | W18: 107.0715096 | X18: 108.0085008 | Y18: 105.3436974 | Z18: 106.2690849
A19: 11 | C19: 11.11015892 | D19: 749.9130772 | E19: 749.9135796 | F19: 750.2397834 | G19: 0.1003406127 | H19: 0.5065817582 | I19: 106.3482332 | J19: 106.3951327 | K19: 106.304835 | L19: 106.3265533 | M19: 107.7212806 | N19: 10219.74286 | O19: 10220.14288 | P19: 6766 | Q19: 6765.763195 | R19: 13.27046217 | S19: -13.27046217 | V19: 730 | W19: 107.2872272 | X19: 107.9125907 | Y19: 105.555934 | Z19: 106.1747194
A20: 12 | C20: 12.12018204 | D20: 749.9359084 | E20: 749.9362668 | F20: 750.1852186 | G20: 0.100215067 | H20: 0.5072264213 | I20: 106.206012 | J20: 106.2732666 | K20: 106.1460223 | L20: 106.1903013 | M20: 107.7212806 | N20: 10219.74286 | O20: 10219.99983 | P20: 6766 | Q20: 6765.836048 | R20: 18.4765184 | S20: -18.4765184 | V20: 740 | W20: 107.5038158 | X20: 107.8168508 | Y20: 105.7690275 | Z20: 106.0805213
A21: 13 | C21: 13.13020515 | D21: 749.9535586 | E21: 749.9536973 | F21: 750.1438868 | G21: 0.1001221586 | H21: 0.507696294 | I21: 106.1022532 | J21: 106.1702605 | K21: 106.0422146 | L21: 106.09448 | M21: 107.7212806 | N21: 10219.74286 | O21: 10219.8902 | P21: 6766 | Q21: 6765.868203 | R21: 18.51588236 | S21: -18.51588236 | V21: 750 | W21: 107.7212806 | X21: 107.7212806 | Y21: 105.9829831 | Z21: 105.9864902
A22: 14 | C22: 14.14022827 | D22: 749.9686192 | E22: 749.9686433 | F22: 750.108544 | G22: 0.1000569065 | H22: 0.5080202141 | I22: 106.0299543 | J22: 106.0885621 | K22: 105.9784496 | L22: 106.0277741 | M22: 107.7212806 | N22: 10219.74286 | O22: 10219.82587 | P22: 6766 | Q22: 6765.894501 | R22: 15.88092407 | S22: -15.88092407 | V22: 760 | W22: 107.939627 | X22: 107.6258797 | Y22: 106.197806 | Z22: 105.8926257
A23: 15 | C23: 15.15025139 | D23: 749.9805063 | E23: 749.9804968 | F23: 750.078761 | G23: 0.1000134326 | H23: 0.5082305598 | I23: 105.9824149 | J23: 106.0274446 | K23: 105.9429555 | L23: 105.9830902 | M23: 107.7212806 | N23: 10219.74286 | O23: 10219.78841 | P23: 6766 | Q23: 6765.92121 | R23: 12.15892431 | S23: -12.15892431 | V23: 770 | W23: 108.1588604 | X23: 107.5306476 | Y23: 106.4135016 | Z23: 105.7989273
A24: 16 | C24: 16.16027451 | D24: 749.9886261 | E24: 749.9886157 | F24: 750.0559624 | G24: 0.09998640599 | H24: 0.5083557857 | I24: 105.9537897 | J24: 105.9846421 | K24: 105.9268136 | L24: 105.955742 | M24: 107.7212806 | N24: 10219.74286 | O24: 10219.76214 | P24: 6766 | Q24: 6765.943617 | R24: 8.304918986 | S24: -8.304918986 | V24: 780 | W24: 108.3789861 | X24: 107.435584 | Y24: 106.6300752 | Z24: 105.7053945
A25: 17 | C25: 17.17029762 | D25: 749.9934857 | E25: 749.9934808 | F25: 750.040035 | G25: 0.09997140344 | H25: 0.5084192154 | I25: 105.93904 | J25: 105.9571077 | K25: 105.9232645 | L25: 105.9416931 | M25: 107.7212806 | N25: 10219.74286 | O25: 10219.74204 | P25: 6766 | Q25: 6765.958429 | R25: 4.848047599 | S25: -4.848047599 | V25: 790 | W25: 108.6000097 | X25: 107.3406882 | Y25: 106.8475321 | Z25: 105.612027
A26: 18 | C26: 18.18032074 | D26: 749.9961228 | E26: 749.9961215 | F26: 750.0294978 | G26: 0.09996488425 | H26: 0.5084395178 | I26: 105.9339603 | J26: 105.9415826 | K26: 105.9272954 | L26: 105.9370677 | M26: 107.7212806 | N26: 10219.74286 | O26: 10219.72867 | P26: 6766 | Q26: 6765.966733 | R26: 2.035331365 | S26: -2.035331365 | V26: 800 | W26: 108.8219366 | X26: 107.24596 | Y26: 107.0658777 | Z26: 105.5188243
A27: 19 | C27: 19.19034386 | D27: 749.9974733 | E27: 749.9974734 | F27: 750.0225708 | G27: 0.09996402909 | H27: 0.5084316037 | I27: 105.9351677 | J27: 105.9349549 | K27: 105.9353103 | L27: 105.9384599 | M27: 107.7212806 | N27: 10219.74286 | O27: 10219.72239 | P27: 6766 | Q27: 6765.971436 | R27: -0.06747487265 | S27: 0.06747487265 | V27: 810 | W27: 109.0447723 | X27: 107.1513987 | Y27: 107.2851176 | Z27: 105.425786
A28: 20 | C28: 20.20036697 | D28: 749.998109 | E28: 749.9981093 | F28: 750.0179354 | G28: 0.09996664325 | H28: 0.5084070466 | I28: 105.9400804 | J28: 105.9345017 | K28: 105.9448698 | L28: 105.9432575 | M28: 107.7212806 | N28: 10219.74286 | O28: 10219.72171 | P28: 6766 | Q28: 6765.974752 | R28: -1.503211681 | S28: 1.503211681 | V28: 820 | W28: 109.2685226 | X28: 107.0570041 | Y28: 107.5052572 | Z28: 105.3329115
A29: 21 | C29: 21.21039009 | D29: 749.9983228 | E29: 749.998323 | F29: 750.014809 | G29: 0.09997109563 | H29: 0.5083743589 | I29: 105.9468337 | J29: 105.9379992 | K29: 105.9544334 | L29: 105.9496669 | M29: 107.7212806 | N29: 10219.74286 | O29: 10219.7243 | P29: 6766 | Q29: 6765.977587 | R29: -2.371163085 | S29: 2.371163085 | V29: 830 | W29: 109.493193 | X29: 106.9627757 | Y29: 107.7263021 | Z29: 105.2402006
A30: 22 | C30: 22.22041321 | D30: 749.9982837 | E30: 749.9982837 | F30: 750.0127229 | G30: 0.09997624922 | H30: 0.5083393776 | I30: 105.9541558 | J30: 105.9437336 | K30: 105.9631193 | L30: 105.9565356 | M30: 107.7212806 | N30: 10219.74286 | O30: 10219.72824 | P30: 6766 | Q30: 6765.980078 | R30: -2.79148616 | S30: 2.79148616 | V30: 840 | W30: 109.7187892 | X30: 106.868713 | Y30: 107.9482578 | Z30: 105.1476527
A31: 23 | C31: 23.23043633 | D31: 749.9981198 | E31: 749.9981198 | F31: 750.0113358 | G31: 0.09998136975 | H31: 0.5083057895 | I31: 105.9612355 | J31: 105.9504529 | K31: 105.9705003 | L31: 105.9631491 | M31: 107.7212806 | N31: 10219.74286 | O31: 10219.73243 | P31: 6766 | Q31: 6765.982206 | R31: -2.883090624 | S31: 2.883090624 | V31: 850 | W31: 109.9453169 | X31: 106.7748156 | Y31: 108.1711301 | Z31: 105.0552675
A32: 24 | C32: 24.24045944 | D32: 749.9979324 | E32: 749.9979324 | F32: 750.0103717 | G32: 0.09998602675 | H32: 0.5082756846 | I32: 105.9676027 | J32: 105.9572956 | K32: 105.9764474 | L32: 105.9690891 | M32: 107.7212806 | N32: 10219.74286 | O32: 10219.73634 | P32: 6766 | Q32: 6765.984031 | R32: -2.751557314 | S32: 2.751557314 | V32: 860 | W32: 110.1727819 | X32: 106.681083 | Y32: 108.3949245 | Z32: 104.9630444
A33: 25 | C33: 25.25048256 | D33: 749.9977867 | E33: 749.9977867 | F33: 750.0096246 | G33: 0.09999000498 | H33: 0.5082500366 | I33: 105.973032 | J33: 105.9637126 | K33: 105.981016 | L33: 105.9741477 | M33: 107.7212806 | N33: 10219.74286 | O33: 10219.73976 | P33: 6766 | Q33: 6765.985667 | R33: -2.483833496 | S33: 2.483833496 | V33: 870 | W33: 110.4011901 | X33: 106.5875149 | Y33: 108.6196469 | Z33: 104.8709832
A34: 26 | C34: 26.26050568 | D34: 749.9977114 | E34: 749.9977114 | F34: 750.0089651 | G34: 0.09999323416 | H34: 0.5082290746 | I34: 105.9774644 | J34: 105.9693944 | K34: 105.9843643 | L34: 105.9782693 | M34: 107.7212806 | N34: 10219.74286 | O34: 10219.74257 | P34: 6766 | Q34: 6765.987196 | R34: -2.147117181 | S34: 2.147117181 | V34: 880 | W34: 110.6305474 | X34: 106.4941107 | Y34: 108.845303 | Z34: 104.7790832
A35: 27 | C35: 27.27052879 | D35: 749.9977099 | E35: 749.9977099 | F35: 750.0083276 | G35: 0.09999573648 | H35: 0.5082125586 | I35: 105.9809469 | J35: 105.9742057 | K35: 105.9866971 | L35: 105.9815001 | M35: 107.7212806 | N35: 10219.74286 | O35: 10219.74471 | P35: 6766 | Q35: 6765.988642 | R35: -1.790148864 | S35: 1.790148864 | V35: 890 | W35: 110.8608596 | X35: 106.4008702 | Y35: 109.0718987 | Z35: 104.6873442
A36: 28 | C36: 28.28055191 | D36: 749.9977723 | E36: 749.9977723 | F36: 750.0076872 | G36: 0.09999758802 | H36: 0.5081999819 | I36: 105.9835866 | J36: 105.9781305 | K36: 105.9882276 | L36: 105.9839443 | M36: 107.7212806 | N36: 10219.74286 | O36: 10219.74619 | P36: 6766 | Q36: 6765.989995 | R36: -1.445759508 | S36: 1.445759508 | V36: 900 | W36: 111.0921327 | X36: 106.3077927 | Y36: 109.2994397 | Z36: 104.5957657
A37: 29 | C37: 29.29057503 | D37: 749.9978847 | E37: 749.9978847 | F37: 750.00704 | G37: 0.0999988909 | H37: 0.5081907179 | I37: 105.9855177 | J37: 105.9812274 | K37: 105.9891543 | L37: 105.9857304 | M37: 107.7212806 | N37: 10219.74286 | O37: 10219.7471 | P37: 6766 | Q37: 6765.99124 | R37: -1.133926733 | S37: 1.133926733
A38: 30 | C38: 30.00059128 | D38: 749.9979843 | E38: 749.9979843 | F38: 750.0065903 | G38: 0.09999952946 | H38: 0.5081858991 | I38: 105.9865135 | J38: 105.9829398 | K38: 105.9895341 | L38: 105.9866515 | M38: 107.7212806 | N38: 10219.74286 | O38: 10219.74744 | P38: 6766 | Q38: 6765.992033 | R38: -0.9425863261 | S38: 0.9425863261

Sheet GPE
F3: General Equilibrium Prices, $/physical unit
K5: Experimenters are invited to change
K6: any data set in red type that
K7: appears within the marquee.
C8: =E8-C10 -> 0 | E8: 0 | F8: 0 | G8: 0 | H8: 0
C9: r | D9: R | E9: 0 | F9: 1 | G9: 2 | H9: L
C10: =E10-E10 -> 0 | D10: 0 | E10: =E26/E$18 -> 104588.8261 | F10: =-F8-SUM(F11:F13) -> -100 | G10: =-G8-SUM(G11:G13) -> -750 | H10: =-H8-SUM(H11:H13) -> -8766
C11: =F26-E27 -> -8035.153798 | D11: 1 | E11: =E27/E$18 -> -40175.76899 | F11: 50 | G11: 150 | H11: 1000 | N11: =L18*F11+F10 -> -45 | O11: =L18*G11 -> 165 | Q11: =-L18*H11*H18 -> -22000
C12: =G26-E28 -> -7344.632768 | D12: 2 | E12: =E28/E$18 -> -36723.16384 | F12: 30 | G12: 250 | H12: 1000 | N12: =L18*F12 -> 33 | O12: =L18*G12+G10 -> -475 | Q12: =-L18*H12*H18 -> -22000
C13: =H26-E29 -> 15379.78657 | D13: L | E13: =E29/E$18 -> -27689.89328 | F13: 20 | G13: 350 | H13: 6766 | N13: =F13+L15*(F11+F12) -> 12 | O13: =G13+L15*(G11+G12) -> 310 | Q13: =H18*(-H10-H13-L15*(H11+H12)) -> 44000
L14: i
L15: =-C18 -> -0.1 | N15: =N11*N11+N12*N12+N13*N13 -> 3258 | O15: =N11*O11+N12*O12+N13*O13 -> -19380 | Q15: =N11*Q11+N12*Q12+N13*Q13 -> 792000
N16: =O15 -> -19380 | O16: =O11*O11+O12*O12+O13*O13 -> 348950 | Q16: =O11*Q11+O12*Q12+O13*Q13 -> 20460000
C17: - i | E17: 0 | F17: 1 | G17: 2 | H17: L | L17: 1 - i
C18: 0.1 | D18: P | E18: 2 | F18: =N18/Q18 -> 883.8669178 | G18: =O18/Q18 -> 107.7212806 | H18: 20 | L18: =1-L15 -> 1.1 | N18: =Q15*O16-Q16*O15 -> 672883200000 | O18: =N15*Q16-N16*Q15 -> 8.200764e+10 | Q18: =N15*O16-N16*O15 -> 761294700
C19: Interest Rate | H19: Wage
H20: $/hour
E24: =-SUM(F24:H24) -> 0 | F24: =F$18*F8 -> 0 | G24: =G$18*G8 -> 0 | H24: =H$18*H8 -> 0
D25: PR | E25: 0 | F25: 1 | G25: 2 | H25: L
D26: 0 | E26: =-SUM(F26:H26) -> 209177.6522 | F26: =-F24-SUM(F27:F29) -> -88386.69178 | G26: =-G24-SUM(G27:G29) -> -80790.96045 | H26: =-H24-SUM(H27:H29) -> -40000
B27: % return > | C27: =C11/E27 -> 0.1 | D27: 1 | E27: =-SUM(F27:H27) -> -80351.53798 | F27: =F$18*F11 -> 44193.34589 | G27: 16158.19209 | H27: 20000
B28: on asset | C28: =C12/E28 -> 0.1 | D28: 2 | E28: =-SUM(F28:H28) -> -73446.32768 | F28: 26516.00753 | G28: 26930.32015 | H28: 20000
B29: turnover | D29: L | E29: =-SUM(F29:H29) -> -55379.78657 | F29: =F$18*F13 -> 17677.33836 | G29: =G$18*G13 -> 37702.44821 | H29: 0

Sheet Utility
G3: Sectors' Production and Utility Tradeoffs, physical units/year
L5: Sector 1:
N7: p | O7: pq
L8: x > | M8: =-F12 -> 100 | N8: =F19 -> 883.8669178 | O8: =M8*N8 -> 88386.69178 | P8: =O8-O9-O10-O11 -> 8035.153798
L9: Q1 > | M9: =F13 -> 50 | N9: =F19 -> 883.8669178 | O9: =M9*N9 -> 44193.34589 | P9: =(O8)*(-O9)+(O8-O9)*(-O10-O11)+(-O10)*(-O11) -> -5180891290 | Q9: =P9/P8/3 -> -214926.0371 | R9: a
F10: =GPE!F8 -> 0 | G10: =GPE!G8 -> 0 | H10: =GPE!H8 -> 0 | L10: Q2 > | M10: =G13 -> 150 | N10: =G19 -> 107.7212806 | O10: =M10*N10 -> 16158.19209 | P10: =(O8-O9)*(-O10)*(-O11)+(-O10-O11)*(O8)*(-O9) -> 1.555193372e+14 | Q10: =P10/P8/3 -> 6451622506 | R10: b
D11: Q | E11: 0 | F11: 1 | G11: 2 | H11: L | L11: QL > | M11: =H13 -> 1000 | N11: =H19 -> 20 | O11: =M11*N11 -> 20000 | P11: =(O8)*(-O9)*(-O10)*(-O11) -> -1.262311459e+18 | Q11: =P11/P8/2 -> -7.854930292e+13 | R11: c
D12: 0 | E12: =GPE!E10 -> 104588.8261 | F12: =GPE!F10 -> -100 | G12: =GPE!G10 -> -750 | H12: =GPE!H10 -> -8766 | N12: ^ P
D13: 1 | F13: =GPE!F11 -> 50 | G13: =GPE!G11 -> 150 | H13: =GPE!H11 -> 1000 | O13: pu | P13: z
D14: 2 | F14: =GPE!F12 -> 30 | G14: =GPE!G12 -> 250 | H14: =GPE!H12 -> 1000 | L14: Z < | M14: =O14/N8 -> 794.2843664 | O14: =P$14+O8 -> 702041.6748 | P14: =-Q9+Q16+Q17 -> 613654.983 | Q14: =-Q9*Q9+Q10 -> -3.974157891e+10 | R14: B | S14: =Q14^3+Q15^2 -> 6.560854017e+28
D15: L | F15: =GPE!F13 -> 20 | G15: =GPE!G13 -> 350 | H15: =GPE!H13 -> 6766 | L15: U1 < | M15: =O15/N9 -> 644.2843664 | O15: =P$14-O9 -> 569461.6371 | Q15: =Q9^3-3*Q9*Q10/2+Q11 -> -7926738537434964 | R15: C | S15: =SQRT(ABS(S14)) -> 2.561416408e+14
L16: U2 < | M16: =O16/N10 -> 5546.692237 | O16: =P$14-O10 -> 597496.7909 | Q16: =IF(S16>0,S16^(1/3),-((-S16)^(1/3))) -> 201512.5339 | R16: S1 | S16: =(-Q15+S15) -> 8182880178270446
L17: UL < | M17: =O17/N11 -> 29682.74915 | O17: =P$14-O11 -> 593654.983 | Q17: =IF(S17>0,S17^(1/3),-((-S17)^(1/3))) -> 197216.4121 | R17: S2 | S17: =(-Q15-S15) -> 7670596896599482
E18: 0 | F18: 1 | G18: 2 | H18: L
D19: P | E19: =GPE!E18 -> 2 | F19: =GPE!F18 -> 883.8669178 | G19: =GPE!G18 -> 107.7212806 | H19: =GPE!H18 -> 20
L22: Sector 2:
N23: p | O23: pq
L24: x > | M24: =-G12 -> 750 | N24: =G19 -> 107.7212806 | O24: =M24*N24 -> 80790.96045 | P24: =O24-O25-O26-O27 -> 7344.632768
L25: Q1 > | M25: =F14 -> 30 | N25: =F19 -> 883.8669178 | O25: =M25*N25 -> 26516.00753 | P25: =(O24)*(-O25)+(O24-O25)*(-O26-O27)+(-O26)*(-O27) -> -4150788230 | Q25: =P25/P24/3 -> -188381.9273 | R25: a
L26: Q2 > | M26: =G14 -> 250 | N26: =G19 -> 107.7212806 | O26: =M26*N26 -> 26930.32015 | P26: =(O24-O25)*(-O26)*(-O27)+(-O26-O27)*(O24)*(-O25) -> 1.297694899e+14 | Q26: =P26/P24/3 -> 5889538388 | R26: b
C27: z | D27: U | E27: 0 | F27: 1 | G27: 2 | H27: L | L27: QL > | M27: =H14 -> 1000 | N27: =H19 -> 20 | O27: =M27*N27 -> 20000 | P27: =(O24)*(-O25)*(-O26)*(-O27) -> -1.153831568e+18 | Q27: =P27/P24/2 -> -7.854930292e+13 | R27: c
C28: 0 | D28: 0 | E28: =-E12+((O8-O14)+(O24-O30)-(O41-O45))/E19 -> -643139.1648 | F28: =M14 -> 794.2843664 | G28: =M30 -> 5693.503722 | H28: =-H12 -> 8766 | N28: ^ P
C29: =P14 -> 613654.983 | D29: 1 | F29: =M15 -> 644.2843664 | G29: =M16 -> 5546.692237 | H29: =M17 -> 29682.74915 | O29: pu | P29: z
C30: =P30 -> 532520.5516 | D30: 2 | F30: =M31 -> 572.4895161 | G30: =M32 -> 4693.503722 | H30: =M33 -> 25626.02758 | L30: Z < | M30: =O30/N24 -> 5693.503722 | O30: =$P$30+O24 -> 613311.5121 | P30: =-Q25+Q32+Q33 -> 532520.5516 | Q30: =-Q25*Q25+Q26 -> -2.959821216e+10 | R30: B | S30: =Q30^3+Q31^2 -> 7.604104008e+28
C31: =P45 -> 69074.85729 | D31: L | F31: =M46 -> 58.15074408 | G31: =M47 -> 291.2368745 | H31: =M45 -> -10219.74286 | L31: U1 < | M31: =O31/N25 -> 572.4895161 | O31: =$P$30-O25 -> 506004.5441 | Q31: =Q25^3-3*Q25*Q26/2+Q27 -> -5099576259480375 | R31: C | S31: =SQRT(ABS(S30)) -> 2.75755399e+14
L32: U2 < | M32: =O32/N26 -> 4693.503722 | O32: =$P$30-O26 -> 505590.2315 | Q32: =IF(S32>0,S32^(1/3),-((-S32)^(1/3))) -> 175173.5058 | R32: S1 | S32: =(-Q31+S31) -> 5375331658481722
L33: UL < | M33: =O33/N27 -> 25626.02758 | O33: =$P$30-O27 -> 512520.5516 | Q33: =IF(S33>0,S33^(1/3),-((-S33)^(1/3))) -> 168965.1184 | R33: S2 | S33: =(-Q31-S31) -> 4823820860479028
L38: Sector L:
M40: Leisure | N40: p | O40: pq
L41: x > | M41: =-H15 -> -6766 | N41: =-H19 -> -20 | O41: =M41*N41 -> 135320 | Q41: =O41-O42-O43 -> 79940.21343 | R41: a
L42: Q1 > | M42: =F15 -> 20 | N42: =F19 -> 883.8669178 | O42: =M42*N42 -> 17677.33836 | Q42: =-O41*O42-O41*O43+O42*O43 -> -6827513784 | R42: b
L43: Q2 > | M43: =G15 -> 350 | N43: =G19 -> 107.7212806 | O43: =M43*N43 -> 37702.44821 | Q43: =O41*O42*O43 -> 9.018792933e+13 | R43: c
N44: ^ P | O44: pu | P44: z
L45: Z < | M45: =O45/N41 -> -10219.74286 | O45: =P$45+O41 -> 204394.8573 | P45: =(-Q42+SQRT(Q42^2-4*Q41*Q43))/(2*Q41) -> 69074.85729
L46: U1 < | M46: =O46/N42 -> 58.15074408 | O46: =P$45-O42 -> 51397.51893
L47: U2 < | M47: =O47/N43 -> 291.2368745 | O47: =P$45-O43 -> 31372.40908

Sheet IState
H4: Commodities' Turnover Fractions, dimensionless/year
E8: NPV
E9: =(1-E13)^-G9 -> 0.5131581182 | G9: 7 | I9: < Investment Term, T yrs.
E12: i | G12: n
E13: =GPE!L15 -> -0.1 | G13: =(1-1/E9)/G9 -> -0.1355310143 | H13: V | I13: 1 | J13: 0.1 | K13: =1/3 -> 0.3333333333 | L13: =1 -> 1
I14: 0 | J14: 1 | K14: 2 | L14: L
I20: =GPE!E8 -> 0 | J20: =GPE!F8 -> 0 | K20: =GPE!G8 -> 0 | L20: =GPE!H8 -> 0
E21: e - | G21: e + | H21: E | I21: 0 | J21: 1 | K21: 2 | L21: L
D22: 0 | H22: 0 | I22: =GPE!E10 -> 104588.8261 | J22: =GPE!F10 -> -100 | K22: =GPE!G10 -> -750 | L22: =GPE!H10 -> -8766 | M22: 0
D23: 1 | E23: =GPE!C11 -> -8035.153798 | H23: 1 | I23: =GPE!E11 -> -40175.76899 | J23: =GPE!F11 -> 50 | K23: =GPE!G11 -> 150 | L23: =GPE!H11 -> 1000 | M23: 1
D24: 2 | E24: =GPE!C12 -> -7344.632768 | H24: 2 | I24: =GPE!E12 -> -36723.16384 | J24: =GPE!F12 -> 30 | K24: =GPE!G12 -> 250 | L24: =GPE!H12 -> 1000 | M24: 2
D25: L | G25: =GPE!C13 -> 15379.78657 | H25: L | I25: =GPE!E13 -> -27689.89328 | J25: =GPE!F13 -> 20 | K25: =GPE!G13 -> 350 | L25: =GPE!H13 -> 6766 | M25: L
E28: 0 | G28: 0 | I28: =I20/I$13/3 -> 0 | J28: =J20/J$13/3 -> 0 | K28: =K20/K$13/3 -> 0 | L28: =L20/L$13/3 -> 0
H29: A | I29: 0 | J29: 1 | K29: 2 | L29: L
D30: 0 | H30: 0 | I30: =I22/I$13/3 -> 34862.94204 | J30: -333.3333333 | K30: -750 | L30: -2922 | M30: 0
D31: 1 | E31: =E23/E13 -> 80351.53798 | H31: 1 | I31: -13391.923 | J31: 166.6666667 | K31: 150 | L31: 333.3333333 | M31: 1
D32: 2 | E32: =E24/E13 -> 73446.32768 | H32: 2 | I32: -12241.05461 | J32: 100 | K32: 250 | L32: 333.3333333 | M32: 2
D33: L | G33: =G25/G13/3 -> -37825.99539 | H33: L | I33: -9229.964428 | J33: 66.66666667 | K33: 350 | L33: 2255.333333 | M33: L
I36: =I28 -> 0 | J36: =J28 -> 0 | K36: =K28 -> 0 | L36: =L28 -> 0
H37: B | I37: 0 | J37: 1 | K37: 2 | L37: L
H38: 0 | I38: =I30 -> 34862.94204 | J38: =J30 -> -333.3333333 | K38: -750 | L38: -2922 | M38: 0
H39: 1 | I39: =I31 -> -13391.923 | J39: 166.6666667 | K39: 150 | L39: 333.3333333 | M39: 1
C40: System State | H40: 2 | I40: =I32 -> -12241.05461 | J40: 100 | K40: 250 | L40: 333.3333333 | M40: 2
C41: at time = 0 > | G41: =G33 -> -37825.99539 | H41: L | I41: =I33 -> -9229.964428 | J41: 66.66666667 | K41: 350 | L41: 2255.333333 | M41: L
I44: =I36 -> 0 | J44: =J36 -> 0 | K44: =K36 -> 0 | L44: =L36 -> 0
H45: C | I45: 0 | J45: 1 | K45: 2 | L45: L
H46: 0 | I46: =I38 -> 34862.94204 | J46: =J38 -> -333.3333333 | K46: -750 | L46: -2922 | M46: 0
H47: 1 | I47: =I39 -> -13391.923 | J47: 166.6666667 | K47: 150 | L47: 333.3333333 | M47: 1
H48: 2 | I48: =I40 -> -12241.05461 | J48: 100 | K48: 250 | L48: 333.3333333 | M48: 2
G49: =G41 -> -37825.99539 | H49: L | I49: =I41 -> -9229.964428 | J49: 66.66666667 | K49: 350 | L49: 2255.333333 | M49: L
L52: =Utility!M45/L13 -> -10219.74286

Sheet Module1 (hidden)

Sheet Module2 (hidden)
